Cogmind - Beta 15 @@@ ROGUE MODE // 2025.08.08 @ 22:45:18 Player: ilja Result: Destroyed by G-34 Mercenary with Small Laser Performance ------------- Evolutions (0) 0 Regions Visited (1) 200 Robots Destroyed (11) 55 Value Destroyed (210) 210 Prototype IDs (0) 0 Alien Tech Used (0) 0 Bonus (0) 0 TOTAL SCORE: 465 Bonus ------- None Cogmind --------- Core Integrity 0/250 Matter 12/300 Energy 125/125 System Corruption 3% Temperature Cool (21) Movement Rolling (95) Ox1 Location -10/Materials Parts ------- > --- POWER (1) -------- Light Ion Engine > --- PROPULSION (2) --- Wheel Wheel > --- UTILITY (2) ------ Large Storage Unit Seismic Detector (fused) > --- WEAPON (2) ------- Autogun Autogun > --- INVENTORY (15) --- Light Ion Engine Light Treads Compact Wheel Small Storage Unit ECM Suite EM Pulse Gun Light Assault Rifle Grenade Launcher Welding Torch Peak State ------------ > --- POWER ------------ Ion Engine > --- PROPULSION ------- Light Treads Light Treads > --- UTILITY ---------- Large Storage Unit Seismic Detector > --- WEAPON ----------- Autogun Autogun > --- INVENTORY -------- Light Ion Engine Light Ion Engine Light Ion Engine Wheel Wheel Wheel Small Storage Unit EM Pulse Gun EM Pulse Gun Light Assault Rifle Grenade Launcher [Rating: 10] Favorites ----------- Power Ion Engine Engine Ion Engine Propulsion Light Treads Treads Light Treads Wheel Wheel Utility Seismic Detector Device Seismic Detector Storage Small Storage Unit Weapon Autogun Energy Gun EM Pulse Gun Ballistic Gun Autogun Build | -11 -10 ------- Run | Yrd Mat Slots Evolved . | . . Power . | . . Propulsion . | . . Utility . | . . Weapon . | . . Parts Attached 19 | 7 12 Power 3 | 1 2 Engine 3 | 1 2 Core . | . . Reactor . | . . Propulsion 6 | 2 4 Treads 2 | 2 . Leg . | . . Wheel 4 | . 4 Hover . | . . Flight . | . . Utility 4 | 2 2 Device 1 | 1 . Storage 3 | 1 2 Processor . | . . Hackware . | . . Protection . | . . Artifact . | . . Weapon 6 | 2 4 Energy Gun 1 | 1 . Energy Cannon . | . . Ballistic Gun 5 | 1 4 Ballistic Cannon . | . . Launcher . | . . Special Weapon . | . . Impact Weapon . | . . Slashing Weapon . | . . Piercing Weapon . | . . Special Melee Weapon . | . . Unidentified Prototypes . | . . Parts Lost 5 | . 5 Power 1 | . 1 Propulsion 2 | . 2 Utility . | . . Weapon 2 | . 2 Highest Loss Streak 3 | . 3 To Critical Strikes . | . . Average Backups 8 | 4 9 Power 2 | 2 2 Propulsion 2 | 1 2 Utility . | . . Weapon 2 | . 2 Tool/Special . | . . Unused Backups 5 | . 5 Power 2 | . 2 Propulsion . | . . Utility . | . . Weapon 2 | . 2 Tool/Special 1 | . 1 Average Slot Usage (%) 95 | . 95 Engine 13 | . 13 Treads 19 | . 19 Wheel 4 | . 4 Device 14 | . 14 Storage 14 | . 14 Energy Gun 7 | . 7 Ballistic Gun 20 | . 20 Peak Build Rating 10 | 7 10 Average Rating 7 | 5 8 On Entrance 3 | . 7 Naked Turns . | . . Heaviest Build 32 | 14 32 Greatest Support 40 | 40 40 Greatest Overweight (x) 9 | 1 9 Average Overweight (x) . | . . Largest Inventory Capacity 15 | 8 15 Average Capacity 10 | 7 11 Most Carried 13 | 8 13 Average Carried 8 | 4 9 Final Capacity 15 | 8 15 Final Carried 9 | 8 9 Class Distribution -------------------- 100% | Mutant Dominant Class ---------------- Mutant | -10/Materials Resources | -11 -10 ----------- Run | Yrd Mat Matter Collected 353 | 145 208 Remotely . | . . Salvage Created 395 | 179 216 Parts 27 | 17 10 Haulers Intercepted . | . . Recyclers Shooed . | . . Parts Field Recycled . | . . Retrieved Matter . | . . Parts Self-Destructed . | . . Prevented . | . . Kills | -11 -10 ------- Run | Yrd Mat Combat Hostiles Destroyed 6 | . 6 Guns 5 | . 5 AOE 1 | . 1 Classes Destroyed 5 | 3 2 Worker 1 | 1 . Tunneler 3 | 3 . Recycler 1 | 1 . Swarmer 2 | . 2 Grunt 4 | . 4 Best Kill Streak 2 | 2 2 Combat Bots Only 2 | . 2 Max Kills in Single Turn 1 | 1 1 Gunslinging . | . . Exploded 1 | . 1 Melee . | . . Uniques/NPCs Destroyed . | . . Combat | -11 -10 -------- Run | Yrd Mat Hostile Shots Fired 89 | . 89 Missed 20 | . 20 Hits 69 | . 69 Projectile 69 | . 69 Critical Strikes 1 | . 1 Damage Taken 919 | . 919 Core 255 | . 255 Absorbed by Shields . | . . Core Remaining (%) 100 | 100 . Volleys Fired 45 | 11 34 Largest 2 | 2 2 Hottest 60 | 60 46 Shots Fired 88 | 22 66 Gun 88 | 22 66 Cannon . | . . Launcher . | . . Special . | . . Kinetic 77 | 11 66 Thermal . | . . Explosive . | . . Electromagnetic 11 | 11 . Robot Hit Streak 6 | 5 6 Robot Miss Streak 8 | 4 8 Penetration Max . | . . Secondary Targets . | . . Shots Hit Robots 42 | 13 29 Core Hits 15 | 7 8 Critical Kills . | . . Critical Parts Destroyed . | . . Critical Strikes . | . . Melee Attacks . | . . Impact . | . . Slashing . | . . Piercing . | . . Sneak Attacks . | . . Combat Hostiles . | . . Follow-up Attacks . | . . Damage Inflicted 580 | 148 432 Guns 578 | 148 430 Cannons . | . . Explosions . | . . Melee . | . . Ramming 2 | . 2 Kinetic 485 | 55 430 Thermal . | . . Explosive . | . . Electromagnetic 93 | 93 . Impact . | . . Slashing . | . . Piercing . | . . Highest Corruption 3 | . 3 Average Corruption 2 | . 2 Corruption Purged . | . . Corruption Blocked . | . . Effects 10 | . 10 Message Errors 1 | . 1 Matter Fused 1 | . 1 Heat Flow Errors 1 | . 1 Parts Rejected 1 | . 1 Parts Fused 1 | . 1 Data Loss (minor) 2 | . 2 Misfires 2 | . 2 Weapon Failures 1 | . 1 Overload Shots . | . . Overflow Damage . | . . Projectiles . | . . Explosions . | . . Melee . | . . Knockbacks . | . . Impact . | . . Kinetic . | . . Secondary . | . . Self-Inflicted Damage 1 | . 1 Shots . | . . Rammed 2 | . 2 Targets Rammed 2 | . 2 Kicked . | . . Crushed . | . . Highest Temperature 101 | 40 101 Average Temperature 15 | 15 15 Received Heat Transfer 357 | . 357 Siege Activations . | . . Martial Activations . | . . Shielding Activations . | . . Robots Disrupted . | . . Combat Hostiles . | . . Robots Corrupted . | . . Combat Hostiles . | . . Parts Fried . | . . Impact Corruptions . | . . Robots Melted . | . . Combat Hostiles . | . . Parts Melted . | . . Heat Transferred . | . . Parts Sabotaged . | . . Parts Stolen . | . . Parts Stripped . | . . Power Chain Reactions . | . . Alert | -11 -10 ------- Run | Yrd Mat Maximum Alert Level . | . . Low Security (%) 100 | 100 100 Level 1 . | . . Level 2 . | . . Level 3 . | . . Level 4 . | . . Level 5 . | . . High Security . | . . Max Security . | . . Peak Influence 86 | 10 86 Initial . | . . Average 11 | . 15 Influence Increases 218 | 25 193 Destroy 0b10 Robot/C 120 | . 120 Destroy 0b10 Robot/NC 25 | 25 . Destroy Leader 30 | . 30 Successful Hack 12 | . 12 Destroy Structure 1 | . 1 Lose Combat Pursuer 30 | . 30 Influence Decreases 157 | 25 132 Time Decay 117 | 25 92 Lost Part 40 | . 40 Squads Dispatched 4 | . 4 Investigation 2 | . 2 Extermination . | . . Reinforcement 2 | . 2 Assault . | . . Garrison . | . . Intercept . | . . Searches Triggered . | . . Construction Impeded . | . . Haulers Reinforced . | . . Active Scanning Responses . | . . Cargo Convoy Interrupts . | . . Stealth | -11 -10 --------- Run | Yrd Mat Distress Signals 3 | . 3 Communications Jammed . | . . Distress Signals . | . . Times Spotted 12 | . 12 Peak Tracking Total 5 | . 5 Tactical Retreats 1 | . 1 Traps | -11 -10 ------- Run | Yrd Mat Traps Triggered 4 | . 4 Indirectly . | . . Trap Hack Attempts . | . . Triggered . | . . Disarmed . | . . Reprogrammed . | . . Reused . | . . Traps Extracted . | . . Installed . | . . Triggered . | . . Machines | -11 -10 ---------- Run | Yrd Mat Machines Disabled . | . . Max in Single Turn . | . . Machines Repaired . | . . Machines Dismantled . | . . Machines Sabotaged . | . . Overloaded Fab Kills . | . . Hacking | -11 -10 --------- Run | Yrd Mat Machines Accessed 3 | . 3 Terminals 3 | . 3 Fabricators . | . . Repair Stations . | . . Recycling Units . | . . Scanalyzers . | . . Garrison Access . | . . Total Hacks 6 | . 6 Successful 2 | . 2 Failed 4 | . 4 Catastrophic . | . . Database Lockouts . | . . Manual 6 | . 6 Terminals 6 | . 6 Fabricators . | . . Repair Stations . | . . Recycling Units . | . . Scanalyzers . | . . Garrison Access . | . . Terminal Hacks . | . . Fabricator Hacks . | . . Repair Station Hacks . | . . Recycling Unit Hacks . | . . Scanalyzer . | . . Garrison Access Hacks . | . . Unauthorized Hacks 2 | . 2 Terminals 2 | . 2 Botnet 2 | . 2 Fabricators . | . . Repair Stations . | . . Recycling Units . | . . Scanalyzers . | . . Garrison Access . | . . Data Cores Recovered . | . . Used . | . . Hacking Detections 3 | . 3 Full Trace Events 1 | . 1 Feedback Events . | . . Feedback Blocked . | . . Robot Schematics Acquired . | . . Robots Built . | . . Authchips . | . . Time . | . . Total Robot Build Rating . | . . Part Schematics Acquired . | . . Parts Built . | . . Authchips . | . . Time . | . . Total Part Build Rating . | . . Parts Repaired . | . . Time . | . . Parts Recycled . | . . Recycled Matter . | . . Retrieved Matter . | . . Retrieved Components . | . . Parts Scanalyzed . | . . Part Schematics Acquired . | . . Parts Damaged . | . . Bothacking | -11 -10 ------------ Run | Yrd Mat Used RIF Installer . | . . Robots Hacked . | . . Non-combat . | . . Combat . | . . Robot Hacks Applied . | . . Relay Couplers Released . | . . Fabnet Peak Effective % . | . . Robots Rewired . | . . Allies Hacked . | . . Hacks Repelled . | . . Allies | -11 -10 -------- Run | Yrd Mat Total Allies . | . . Largest Group . | . . Highest-Rated Group . | . . Highest-Rated Ally . | . . Total Orders . | . . Ally Attacks . | . . Total Damage . | . . Kills . | . . Allies Corrupted . | . . Allies Melted . | . . Intel | -11 -10 ------- Run | Yrd Mat Active Infowar (turns) 815 | 22 793 Seismic 815 | 22 793 Robot Analysis Total . | . . Derelict Logs Recovered . | . . Drone Launches . | . . Drone Recoveries . | . . Exploration | -11 -10 ------------- Run | Yrd Mat Turns Passed 1051 | 258 793 Spaces Moved 566 | 133 433 Core 7 | 4 3 Treads 449 | 129 320 Legs . | . . Wheels 110 | . 110 Hover . | . . Flight . | . . Fastest Speed 50 | 50 95 Average Speed 152 | 157 150 Slowest Speed 500 | 160 500 Overloaded Moves . | . . Propulsion Burnouts . | . . Robots Hopped . | . . Potential Cave-ins . | . . Cave-ins Triggered . | . . Exploration Rate (%) 25 | 7 44 Regions Visited 1 Branch Regions . Pre-discovered Areas . | . . Known Exits Taken . | . . Unknown Exits Taken 1 | 1 . Scrap Searched . | . . Spaces Dug . | . . Terrain Destroyed . | . . Melee . | . . Projectile . | . . AOE . | . . Terrain Rammed . | . . Walls Destroyed . | . . Machines Disabled . | . . Actions | -11 -10 --------- Run | Yrd Mat Total 681 | 158 523 Wait 26 | . 26 Move 565 | 132 433 Hop . | . . Pick Up 18 | 8 10 Fast Attach 7 | 7 . Attach 8 | . 8 Detach 1 | . 1 Swap 4 | . 4 Drop 5 | . 5 Fire 45 | 11 34 Melee . | . . Ram 2 | . 2 Kick . | . . Crush . | . . Escape Stasis . | . . Rewire . | . . Trap . | . . Miscellaneous . | . . Route ------- -11/Scrapyard -10/Materials (discovered 1 exit: [*Min]) History --------- Turn | Location | Event 11 | -11/Scrapyard | Discovered new exit (range 16) 259 | -11/Scrapyard | Entered Materials 317 | -10/Materials | Build established: Mutant 759 | -10/Materials | Derelicts attacked the area 921 | -10/Materials | Core integrity fell below 50% 979 | -10/Materials | Lost 3 parts (1p1n1w) 1001 | -10/Materials | Discovered new exit (range 9) 1002 | -10/Materials | Core integrity fell below 20% 1052 | -10/Materials | Destroyed by G-34 Mercenary with Small Laser Last Messages --------------- 00991_ System corrupted: FCS attempts to trigger Autogun. 00991_ System corrupted: Autogun misfires. 00995_ K-01 Serf collects debris. 00999_ Wheel destroyed. 01001_ K-01 Serf collects debris. 01001_ EXIT=FOUND 01002_ K-01 Serf collects debris. 01016_ Acquired Wheel. 01018_ K-01 Serf cleans the Nuclear Reactor. 01021_ System corrupted: Matter fused (-7). 01022_ K-01 Serf cleans the Nuclear Reactor. 01024_ S-10 Pest destroyed. 01025_ K-01 Serf cleans the Nuclear Reactor. 01028_ Acquired Com. Wheel. 01029_ K-01 Serf collects debris. 01029_ K-01 Serf cleans the Nuclear Reactor. 01032_ K-01 Serf collects debris. 01034_ K-01 Serf cleans the Nuclear Reactor. 01037_ Acquired ECM Suite. 01038_ K-01 Serf cleans the Nuclear Reactor. Map ----- +----------------------------------------------------+ | ????????????????????????? + #????????# | | ??????????????????????????# """"" ########## "" | | ??????????????????????????# ""T"" + + "" | | ??????????????????????????# ########## "" | | ??????????????????????????###########????????# "" | | ?????????????????????????????????????????????# "" | | ?????????????????????????????????????????????# | | ?????????????????????????????????????????????# | | ?????????????????????????????????????????????# | | ??????????????????????? ???????????????????# " | | ??????????????????????+ ???????????????????# | | ??????????????????????# ???????????????????# " | | ????????????????????### ##?#+#?????????????# | | ????????????????????""" #?# #?????????????##### | | ????????????????????" a #?# #?????????????????? | | ???????????????????#"! #?# #?????????????????? | | ???????????????????#"" !< #?# #?????????????????? | | ???????????????????#"!*%= #?#%#?????######??????? | | ????????????????????" === ??#=#????##!! ##?????? | | ?????????????????????"!=*%!??#%#????#! !#?????? | | ??????????????????????#%!%#?##=##???# #?????? | | ??????????????????????#=%g#?#%[=#???### ####### | | ??????????????????????#!=%###*[ #?????# | | ??????????????????????#!%*! %* ####### | | ?????????????????????##* = t | | ?????????????#+#######%& @ r#### "" ### | | ?????????? #??# "" #?? | | ?????????? * k a #??# T" #?? | | ?????????? k %= == ! #??# "" ### | | ???????????###### """ == !! #??# "" # | | ???????????????#" """ !! #??# | | ???????????????#T """ #??# = | | ???????????????#" #?########+##+# | | ????????????????# o = #?#^ * [ !# | | ????????????????? #?# = # | | ????????????????# ############+###?# " # | | ??????????????? ??????????? ???# " " # | | ??????????????? ???????????? ???# # | | ??????????????? ????????????""????# * ]# | | ???????????????? ???????????????????############# | | ?????????????????????????????????????????????????? | | ?????????????????????????????????????????????????? | | ?????????????????????????????????????????????????? | | ?????????????????????????????????????????????????? | | ?????????????????????????????????????????????????? | | ?????????????????????????????????????????????????? | | ?????????????????????????????????????????????????? | | ?????????????????????????????????????????????????? | | ?????????????????????????????????????????????????? | | ?????????????????????????????????????????????????? | +----------------------------------------------------+ Best States ------------- Heat Dissipation 25 Energy Generation 10 Energy Capacity 250 Matter Stores 164 Matter Capacity 300 Sight Range 16 Terrain Scan Density 10 Evasion (%) 41 Recoil Reduction 2 Item Schematics ----------------- None Robot Schematics ------------------ None Fabricated ------------ Nothing Repaired ---------- Nothing Alien Tech Used ----------------- None Achievements -------------- None Challenges ------------ None Game ------ Seed MiniShrapnelMount Manual? 0 Play Time 00:15:42 Cumulative 9.0 hours Start 2025.08.08 @ 22:30:35 End 2025.08.08 @ 22:45:18 Sessions 1 Manual Loads 0 Difficulty Rogue Special Mode None Game No. 19 Rogue 19 Adventurer 0 Explorer 0 Win Type - Total 0 Types 0/0/0/0/0/0/0/0/0/0 Lore% 6 Gallery% 11 Achievement% 10 Wizard Run 0 Options --------- Layout 0 ASCII 0 Keyboard 0 Movement Arrows Keybinds 0 Fullscreen 1 Font 20/SmallcapsGlow Map View 66x50 Zoom Use 0% Tactical HUD 1 Map Filters NONE Filters NONE Steam 1 RUN: f86877a7-5f7d-4893-8fcd-a66bc5080bba